lending/lending_fUSD_20260124
["ID","MTS","AMOUNT","RATE_DAILY","PERIOD"]
[403159890,1769218240293,-300.12234076,0.00016562,2]
[403159891,1769218240302,-151.0,0.00016563,2]
[403159892,1769218240312,-151.0,0.00016563,2]
[403159893,1769218240322,-151.0,0.00016563,2]
[403159894,1769218240331,-500.0,0.00016563,2]
[403159895,1769218240340,-500.0,0.00016563,2]
[403159896,1769218240350,-500.0,0.00016563,2]
[403159897,1769218240370,-500.0,0.00016563,2]
[403159898,1769218240379,-500.0,0.00016563,2]
[403159899,1769218240388,-199.02917406,0.00016563,2]
[403159900,1769218240398,-500.0,0.00016563,2]
[403159901,1769218240407,-151.0,0.00016563,2]
[403159902,1769218240417,-3240.0,0.00016572,2]
[403159903,1769218240426,-3767.8,0.00016578,2]
[403159904,1769218240436,-161.0,0.000166,2]
[403159905,1769218240445,-161.0,0.000166,2]
[403159906,1769218240454,-150.0,0.000166,2]
[403159907,1769218240464,-1503.0,0.00016609,2]
[403159908,1769218240473,-3767.8,0.00016612,2]
[403159909,1769218240482,-1234.30143961,0.00016642,2]
[403159910,1769218240491,-3767.8,0.00016645,2]
[403159911,1769218240500,-636.0,0.00016677,2]
[403159912,1769218240510,-3767.8,0.00016679,2]
[403159913,1769218240519,-500.0,0.00016685,2]
[403159914,1769218240528,-500.0,0.00016685,2]
[403159915,1769218240537,-150.0,0.000167,2]
[403159916,1769218240546,-3767.8,0.00016713,2]
[403159917,1769218240556,-1297.73,0.00016719,2]
[403159918,1769218240565,-3767.8,0.00016747,2]
[403159919,1769218240574,-166.66,0.00016755,2]
[403159920,1769218240583,-464.61,0.00016765,2]
[403159921,1769218240593,-150.0,0.000168,2]
[403159922,1769218240603,-1035.0,0.0001689,2]
[403159923,1769218240612,-430.0,0.0001689,2]
[403159924,1769218240621,-161.0,0.0001689,2]
[403159925,1769218240631,-161.0,0.0001689,2]
[403159926,1769218240641,-161.0,0.0001689,2]
[403159927,1769218240650,-150.0,0.000169,2]
[403159928,1769218240659,-3002.22,0.00016951,2]
[403159929,1769218240669,-500.0,0.00016962,6]
[403159931,1769218240678,-250.0,0.00017,2]
[403159932,1769218240687,-161.85076816,0.00017,2]
[403159933,1769218240696,-484.09,0.00017041,2]
[403159934,1769218240705,-484.37,0.00017041,2]
[403159935,1769218240714,-484.37,0.00017041,2]
[403159936,1769218240723,-484.37,0.00017041,2]
[403159937,1769218240732,-484.37,0.00017041,2]
[403159938,1769218240741,-497.65,0.00017041,2]
[403159939,1769218240750,-405.16557084,0.00017052,2]
[403159940,1769218240760,-1000.0,0.00017066,2]
[403159941,1769218240769,-166.66,0.00017081,2]
[403159942,1769218240778,-322.6107,0.00017099,2]
[403159943,1769218240787,-721.12765535,0.00017099,2]
[403159944,1769218240797,-250.0,0.00017099,2]
[403159945,1769218240806,-250.0,0.00017099,2]
[403159946,1769218240815,-500.0,0.00017099,2]
[403159947,1769218240825,-250.0,0.00017099,2]
[403159948,1769218240834,-174.61919141,0.00017099,2]
[403159949,1769218240843,-500.0,0.00017099,2]
[403159950,1769218240852,-500.0,0.00017099,2]
[403159951,1769218240861,-500.0,0.00017099,2]
[403159952,1769218240870,-500.0,0.00017099,2]
[403159953,1769218240879,-500.0,0.00017099,2]
[403159954,1769218240889,-500.0,0.00017099,2]
[403159955,1769218240898,-500.0,0.00017099,2]
[403159956,1769218240907,-500.0,0.00017099,2]
[403159957,1769218240916,-854.2589148,0.00017099,2]
[403159958,1769218240925,-500.0,0.00017099,2]
[403159959,1769218240934,-500.0,0.00017099,2]
[403159960,1769218240943,-250.0,0.00017099,2]
[403159961,1769218240953,-250.0,0.00017099,2]
[403159962,1769218240962,-250.0,0.00017099,2]
[403159963,1769218240971,-151.0,0.00017099,2]
[403159964,1769218240980,-209.40437684,0.00017099,2]
[403159965,1769218240989,-250.0,0.00017099,2]
[403159966,1769218240998,-250.0,0.00017099,2]
[403159967,1769218241007,-500.0,0.00017099,2]
[403159968,1769218241017,-250.0,0.00017099,2]
[403159969,1769218241026,-578.20924308,0.00017099,2]
[403159970,1769218241035,-500.0,0.00017099,2]
[403159971,1769218241044,-500.0,0.00017099,2]
[403159972,1769218241054,-250.0,0.00017099,2]
[403159973,1769218241063,-250.0,0.00017099,2]
[403159974,1769218241074,-250.0,0.00017099,2]
[403159975,1769218241083,-250.0,0.00017099,2]
[403159976,1769218241092,-250.0,0.00017099,2]
[403159977,1769218241102,-250.0,0.00017099,2]
[403159978,1769218241112,-250.0,0.00017099,2]
[403159979,1769218241121,-250.0,0.00017099,2]
[403159980,1769218241131,-250.0,0.00017099,2]
[403159981,1769218241140,-250.0,0.00017099,2]
[403159982,1769218241149,-250.0,0.00017099,2]
[403159983,1769218241158,-250.0,0.00017099,2]
[403159984,1769218241168,-500.0,0.00017099,2]
[403159985,1769218241177,-250.0,0.00017099,2]
[403159986,1769218241186,-500.0,0.00017099,2]
[403159987,1769218241194,-500.0,0.00017099,2]
[403159988,1769218241203,-2468.0,0.00017099,2]
[403159989,1769218241212,-500.0,0.00017099,2]
[403159990,1769218241221,-250.0,0.00017099,2]
[403159991,1769218241231,-500.0,0.00017099,2]
[403159992,1769218241239,-500.0,0.00017099,2]
[403159993,1769218241249,-250.0,0.00017099,2]
[403159994,1769218241258,-636.35812428,0.00017099,2]
[403159995,1769218241272,-500.0,0.00017099,2]
[403159996,1769218241281,-250.0,0.00017099,2]
[403159997,1769218241290,-500.0,0.00017099,2]
[403159998,1769218241299,-250.0,0.00017099,2]
[403159999,1769218241309,-500.0,0.00017099,2]
[403160000,1769218241320,-262.86244878,0.00017099,2]
[403160001,1769218241329,-500.0,0.00017099,2]
[403160002,1769218241338,-500.0,0.00017099,2]
[403160003,1769218241347,-500.0,0.00017099,2]
[403160004,1769218241356,-500.0,0.00017099,2]
[403160005,1769218241365,-500.0,0.00017099,2]
[403160006,1769218241374,-151.0,0.00017099,2]
[403160007,1769218241383,-151.0,0.00017099,2]
[403160008,1769218241392,-359.76179104,0.00017099,2]
[403160009,1769218241402,-151.0,0.00017099,2]
[403160010,1769218241411,-151.0,0.00017099,2]
[403160011,1769218241420,-250.0,0.00017099,2]
[403160012,1769218241429,-151.0,0.00017099,2]
[403160013,1769218241438,-250.0,0.00017099,2]
[403160014,1769218241447,-151.0,0.00017099,2]
[403160015,1769218241456,-250.0,0.00017099,2]
[403160016,1769218241466,-151.0,0.00017099,2]
[403160017,1769218241475,-250.0,0.00017099,2]
[403160018,1769218241484,-151.0,0.00017099,2]
[403160019,1769218241494,-250.0,0.00017099,2]
[403160020,1769218241503,-151.0,0.00017099,2]
[403160021,1769218241512,-250.0,0.00017099,2]
[403160022,1769218241521,-151.0,0.00017099,2]
[403160023,1769218241530,-250.0,0.00017099,2]
[403160024,1769218241539,-151.0,0.00017099,2]
[403160025,1769218241549,-250.0,0.00017099,2]
[403160026,1769218241558,-250.0,0.00017099,2]
[403160027,1769218241567,-250.0,0.00017099,2]
[403160028,1769218241577,-250.0,0.00017099,2]
[403160029,1769218241586,-161.0,0.000171,3]
[403160030,1769218241595,-161.0,0.000171,3]
[403160031,1769218241605,-200.0,0.00017107,2]
[403160032,1769218241614,-200.0,0.00017107,2]
[403160033,1769218241623,-1116.26,0.00017178,2]
[403160034,1769218241633,-179.83,0.00017178,2]
[403160035,1769218241642,-252.84,0.00017178,2]
[403160036,1769218241652,-151.33,0.00017178,2]
[403160037,1769218241661,-150.0,0.00017178,2]
[403160038,1769218241671,-172.08,0.00017178,2]
[403160039,1769218241680,-359.24,0.00017178,2]
[403160040,1769218241690,-179.83,0.00017178,2]
[403160041,1769218241699,-172.08,0.00017178,2]
[403160042,1769218241708,-150.0,0.00017178,2]
[403160043,1769218241718,-468.39,0.00017178,2]
[403160044,1769218241727,-558.47,0.00017178,2]
[403160045,1769218241737,-179.83,0.00017178,2]
[403160046,1769218241746,-172.08,0.00017178,2]
[403160047,1769218241755,-150.0,0.00017178,2]
[403160048,1769218241766,-150.0,0.00017178,2]
[403160049,1769218241775,-300.0,0.00017178,2]
[403160050,1769218241784,-468.39,0.00017178,2]
[403160051,1769218241794,-558.47,0.00017178,2]
[403160052,1769218241803,-173.33,0.00017178,2]
[403160053,1769218241813,-179.83,0.00017178,2]
[403160054,1769218241822,-172.08,0.00017178,2]
[403160055,1769218241832,-468.39,0.00017178,2]
[403160056,1769218241841,-185.08,0.00017178,2]
[403160057,1769218241850,-574.15,0.00017178,2]
[403160058,1769218241860,-150.0,0.00017178,2]
[403160059,1769218241868,-480.86,0.00017178,2]
[403160060,1769218241878,-151.98,0.00017178,2]
[403160061,1769218241887,-177.07,0.00017178,2]
[403160062,1769218241897,-1000.0,0.00017207,2]
[403160063,1769218241906,-172.9,0.00017378,2]
[403160064,1769218241915,-158.45202454,0.00017434,2]
[403160065,1769218241924,-1254.0,0.00017445,2]
[403160066,1769218241933,-768.02304485,0.0001747,2]
[403160067,1769218241942,-1000.0,0.00017481,2]
[403160068,1769218241952,-161.4,0.00017486,2]
[403160069,1769218241961,-163.0,0.000175,3]
[403160070,1769218241970,-164.42,0.000175,3]
[403160071,1769218241979,-150.0,0.00017534,2]
[403160072,1769218241989,-150.0,0.00017534,2]
[403160073,1769218241998,-150.0,0.00017534,2]
[403160074,1769218242012,-150.0,0.00017534,2]
[403160075,1769218242021,-150.0,0.00017534,2]
[403160076,1769218242031,-154.75207679,0.00017589,2]
[403160077,1769218242040,-150.0,0.00017589,2]
[403160078,1769218242049,-150.0,0.00017589,2]
[403160079,1769218242059,-868.543,0.00017607,2]
[403160080,1769218242072,-226.0,0.00017631,2]
[403160081,1769218242083,-1254.0,0.00017638,2]
[403160082,1769218242092,-170.69,0.00017639,2]
[403160083,1769218242102,-156.95,0.00017639,2]
[403160084,1769218242111,-150.0,0.00017639,2]
[403160085,1769218242121,-152.53,0.00017639,2]
[403160086,1769218242130,-1569.91897924,0.0001764,2]
[403160087,1769218242139,-150.0,0.00017644,2]
[403160088,1769218242150,-181.08010149,0.00017647,2]
[403160089,1769218242160,-885.86649465,0.00017647,2]
[403160090,1769218242169,-151.0,0.00017647,2]
[403160091,1769218242179,-175.88365556,0.00017647,2]
[403160092,1769218242188,-502.4963029,0.00017647,2]
[403160093,1769218242197,-500.0,0.00017669,2]
[403160094,1769218242206,-152.14592756,0.00017671,2]
[403160095,1769218242216,-166.47192819,0.00017673,7]
[403160096,1769218242225,-187.25917396,0.000177,2]
[403160097,1769218242234,-1000.0,0.000177,2]
[403160098,1769218242243,-7507.75848666,0.000177,2]
[403160099,1769218242252,-10000.01,0.000177,2]
[403160100,1769218242262,-918.90149509,0.000177,2]
[403160101,1769218242271,-200.0,0.0001771,2]
[403160102,1769218242280,-7507.75848664,0.00017722,2]
[403160103,1769218242290,-1000.0,0.00017731,2]
[403160104,1769218242299,-1000.0,0.00017743,2]
[403160105,1769218242308,-7507.75848664,0.00017744,2]
[403160106,1769218242318,-1000.0,0.0001775,2]
[403160107,1769218242328,-7507.75848664,0.00017767,2]
[403160108,1769218242338,-1000.0,0.00017778,2]
[403160109,1769218242348,-7066.75548449,0.0001778,2]
[403160110,1769218242357,-189.0,0.00017781,2]
[403160111,1769218242366,-1000.0,0.00017785,2]
[403160112,1769218242375,-1000.0,0.00017788,2]
[403160113,1769218242385,-7507.75848664,0.00017789,2]
[403160114,1769218242394,-248.78771965,0.00017799,2]
[403160115,1769218242403,-187.25917394,0.000178,2]
[403160116,1769218242412,-1000.0,0.000178,2]
[403160117,1769218242422,-487.0,0.000178,2]
[403160118,1769218242431,-487.0,0.000178,2]
[403160119,1769218242441,-487.0,0.000178,2]
[403160120,1769218242450,-950.9,0.000178,2]
[403160121,1769218242459,-1254.0,0.00017806,2]
[403160122,1769218242469,-150.0,0.00017808,2]
[403160123,1769218242479,-7507.75848664,0.00017811,2]
[403160124,1769218242488,-156.92681,0.0001782,2]
[403160125,1769218242497,-156.92682,0.0001782,2]
[403160126,1769218242505,-231.38369303,0.0001782,2]
[403160127,1769218242515,-6645.66140582,0.0001783,2]
[403160128,1769218242524,-1000.0,0.0001783,2]
[403160129,1769218242533,-7507.75848664,0.00017833,2]
[403160130,1769218242543,-1000.0,0.00017835,2]
[403160131,1769218242552,-1000.0,0.00017842,2]
[403160132,1769218242562,-1254.0,0.00017853,2]
[403160133,1769218242571,-7507.75848664,0.00017856,2]
[403160134,1769218242580,-200.0,0.00017856,2]
[403160135,1769218242590,-1000.0,0.00017857,2]
[403160136,1769218242599,-150.0,0.00017863,2]
[403160137,1769218242608,-7507.75848664,0.00017878,2]
[403160138,1769218242617,-1000.0,0.0001788,2]
[403160139,1769218242626,-1000.0,0.00017882,2]
[403160140,1769218242635,-1000.0,0.00017882,2]
[403160141,1769218242644,-400.0,0.00017886,2]
[403160142,1769218242653,-1000.0,0.00017888,2]
[403160143,1769218242662,-1000.0,0.000179,2]
[403160144,1769218242672,-7721.3212,0.000179,2]
[403160145,1769218242681,-161.0,0.000179,3]
[403160146,1769218242690,-161.0,0.000179,3]
[403160147,1769218242700,-187.25917394,0.000179,2]
[403160148,1769218242709,-1000.0,0.000179,2]
[403160149,1769218242718,-7507.75848664,0.000179,2]
[403160150,1769218242728,-1685.0,0.000179,2]
[403160151,1769218242737,-150.0,0.00017918,2]
[403160152,1769218242746,-214.20333215,0.00017952,2]
[403160153,1769218242756,-757.0,0.00017959,2]
[403160154,1769218242769,-700.0,0.0001797,2]
[403160155,1769218242778,-700.0,0.0001797,2]
[403160156,1769218242788,-500.0,0.0001797,2]
[403160158,1769218242798,-500.0,0.0001797,2]
[403160161,1769218242808,-500.0,0.0001797,2]
[403160164,1769218242817,-500.0,0.0001797,2]
[403160167,1769218242826,-500.0,0.0001797,2]
[403160170,1769218242835,-700.0,0.0001797,2]
[403160172,1769218242844,-700.0,0.0001797,2]
[403160174,1769218242853,-150.0,0.00017972,2]
[403160175,1769218242862,-500.0,0.00017973,2]
[403160176,1769218242871,-150.0,0.00017973,2]
[403160177,1769218242880,-545.63,0.0001798,2]
[403160178,1769218242889,-500.0,0.00017982,2]
[403160179,1769218242898,-300.12234076,0.0001799,2]
[403160180,1769218242908,-300.12234076,0.0001799,2]
[403160181,1769218242917,-238620.1785056,0.00017999,2]
[403160182,1769218242926,-17419.5177661,0.00017999,2]
[403160183,1769218242935,-1118.7427984,0.00017999,2]
[403160184,1769218242945,-1008.6966,0.00017999,2]
[403160185,1769218242954,-960.4502748,0.00017999,2]
[403160186,1769218242963,-742.9361354,0.00017999,2]
[403160187,1769218242972,-300.0,0.00017999,2]
[403160188,1769218242981,-666.0,0.00017999,2]
[403160189,1769218242990,-93693.9605089,0.00017999,2]
[403160190,1769218242999,-245585.0451412,0.00017999,2]
[403160191,1769218243008,-300.0,0.00017999,2]
[403160192,1769218243017,-500.0,0.00017999,7]
[403160193,1769218243026,-500.0,0.00017999,8]
[403160194,1769218243035,-500.0,0.00017999,9]
[403160195,1769218243044,-568.30517394,0.00017999,10]
[403160196,1769218243054,-21186.5274033,0.00017999,2]
[403160197,1769218243063,-300.0,0.00017999,2]
[403160198,1769218243074,-4331055.79827866,0.00018,2]
[403160201,1769218245021,-120.78242976,0.00017178,2]
[403160202,1769218245086,-5.878e-05,0.00017178,2]
[403160207,1769218246387,-484.37,0.00017041,2]
[403160208,1769218246396,-44.02518404,0.00017178,2]
[403160212,1769218983553,1500.0,0.0001365,2]
[403160213,1769219194721,1000.0,0.00018,30]
[403160214,1769219368517,-4503.17,0.00015411,2]
[403160215,1769219368540,-638.09,0.00015414,2]
[403160216,1769219368560,-185.509126,0.00015492,2]
[403160223,1769219432064,-326.51,0.00015395,2]
[403160224,1769219432074,-973.200874,0.00015492,2]
[403160225,1769219432083,-302.07,0.00015816,2]
[403160226,1769219432092,-300.0,0.00015906,2]
[403160227,1769219432101,-1200.0,0.00015906,2]
[403160228,1769219432111,-1000.0,0.00015918,2]
[403160229,1769219432119,-151.0,0.00015949,2]
[403160230,1769219432128,-32297.06838787,0.00016138,2]
[403160231,1769219432139,-27969.41337765,0.00016138,2]
[403160333,1769219438031,-500.0,0.00016137,2]
[403160334,1769219438041,-197.60829959,0.00016137,2]
[403160335,1769219438052,-425.35654163,0.00016137,2]
[403160336,1769219438062,-266.75176352,0.00016137,2]
[403160337,1769219438072,-500.0,0.00016137,2]
[403160338,1769219438083,-571.4655265,0.00016137,2]
[403160339,1769219438094,-500.0,0.00016137,2]
[403160340,1769219438104,-500.0,0.00016137,2]
[403160341,1769219438114,-500.0,0.00016137,2]
[403160342,1769219438124,-500.0,0.00016137,2]
[403160343,1769219438134,-500.0,0.00016137,2]
[403160344,1769219438145,-500.0,0.00016137,2]
[403160345,1769219438156,-500.0,0.00016137,2]
[403160346,1769219438166,-500.0,0.00016137,2]
[403160347,1769219438176,-294.95344662,0.00016138,2]
[403160348,1769219438189,-31104.45795993,0.00016138,2]
[403160349,1769219438201,-651.65853637,0.00016138,2]
[403160350,1769219438320,-2789.46448742,0.00016138,2]
[403160353,1769219438391,-10497.25482916,0.00016138,2]
[403160355,1769219438403,-651.0,0.00016138,2]
[403160399,1769219445164,-89549.56538934,0.00016138,2]
[403160400,1769219445175,-1730.84596,0.00016138,2]
[403160401,1769219445187,-11311.27154569,0.00016138,2]
[403160402,1769219445198,-2218.04471527,0.00016138,2]
[403160403,1769219445209,-990.88773711,0.00016138,2]
[403160404,1769219445248,-787944.11362757,0.00016138,2]
[403160405,1769219445258,-921.42394177,0.00016152,2]
[403160406,1769219445267,-2500.0,0.00016152,2]
[403160407,1769219445277,-161.0,0.0001616,2]
[403160408,1769219445286,-161.0,0.0001616,2]
[403160409,1769219445295,-161.0,0.0001618,2]
[403160410,1769219445305,-191.38974681,0.0001618,2]
[403160411,1769219445314,-152.23612417,0.0001618,2]
[403160412,1769219445323,-2475.92639893,0.0001618,2]
[403160413,1769219445332,-7533.25288012,0.0001618,2]
[403160414,1769219445341,-4142.85,0.00016238,2]
[403160415,1769219445350,-1843.43,0.00016238,2]
[403160416,1769219445359,-1200.01,0.00016242,2]
[403160417,1769219445368,-150.99,0.00016242,2]
[403160418,1769219445377,-8528.71,0.00016242,2]
[403160419,1769219445386,-150.99,0.00016242,2]
[403160420,1769219445395,-9999.99,0.00016242,2]
[403160421,1769219445403,-500.0,0.00016242,2]
[403160422,1769219445412,-500.0,0.00016242,2]
[403160423,1769219445421,-522.39299277,0.00016242,2]
[403160424,1769219445430,-500.0,0.00016242,2]
[403160425,1769219445439,-500.0,0.00016242,2]
[403160426,1769219445448,-515.637625,0.00016242,2]
[403160427,1769219445457,-203.02690976,0.00016242,2]
[403160428,1769219445466,-151.0,0.00016242,2]
[403160429,1769219445475,-151.0,0.00016242,2]
[403160430,1769219445484,-162.11666966,0.00016242,2]
[403160431,1769219445493,-999.99,0.00016249,2]
[403160433,1769219445502,-161.0,0.0001625,2]
[403160435,1769219445511,-161.0,0.0001625,2]
[403160437,1769219445520,-326.51,0.0001625,2]
[403160439,1769219445529,-880.041,0.00016251,2]
[403160440,1769219445538,-150.0,0.00016252,2]
[403160441,1769219445547,-1421.8,0.0001628,2]
[403160443,1769219445556,-281.0,0.00016282,2]
[403160445,1769219445565,-329.21989763,0.00016315,2]
[403160446,1769219445574,-612.51,0.00016341,2]
[403160447,1769219445583,-150.0,0.00016352,2]
[403160448,1769219445592,-2475.92639888,0.00016371,2]
[403160449,1769219445601,-7533.25288006,0.00016371,2]
[403160450,1769219445610,-768.0,0.00016381,2]
[403160451,1769219445620,-500.0,0.00016438,2]
[403160452,1769219445628,-500.0,0.00016438,2]
[403160454,1769219445637,-500.0,0.00016438,2]
[403160456,1769219445646,-348.14801713,0.00016438,2]
[403160458,1769219445655,-500.0,0.00016438,2]
[403160460,1769219445664,-151.0,0.00016438,2]
[403160462,1769219445673,-161.0,0.0001644,2]
[403160464,1769219445682,-161.0,0.0001644,2]
[403160465,1769219445691,-150.0,0.00016452,2]
[403160466,1769219445700,-1230.49,0.00016478,2]
[403160467,1769219445709,-172.08,0.000165,2]
[403160468,1769219445721,-468.39,0.000165,2]
[403160469,1769219445730,-393.66,0.000165,2]
[403160470,1769219445739,-179.83,0.000165,2]
[403160471,1769219445748,-484.52,0.000165,2]
[403160472,1769219445757,-1265.58,0.000165,2]
[403160473,1769219445766,-612.51,0.000165,2]
[403160474,1769219445775,-1000.0,0.00016515,2]
[403160475,1769219445785,-150.0,0.00016552,2]
[403160476,1769219445794,-2475.92639888,0.00016562,2]
[403160477,1769219445803,-7533.25288006,0.00016562,2]
[403160478,1769219445811,-150.0,0.00016578,2]
[403160479,1769219445820,-172.14,0.00016578,2]
[403160480,1769219445829,-179.89,0.00016578,2]
[403160481,1769219445839,-465.01,0.00016601,2]
[403160482,1769219445848,-150.0,0.00016652,2]
[403160483,1769219445856,-1000.0,0.00016659,2]
[403160484,1769219445866,-605.84,0.000167,2]
[403160485,1769219445875,-343.98,0.000167,2]
[403160486,1769219445885,-1230.49,0.000167,2]
[403160487,1769219445894,-150.0,0.00016752,2]
[403160488,1769219445903,-2475.92639888,0.00016753,2]
[403160489,1769219445913,-7533.25288006,0.00016753,2]
[403160490,1769219445922,-150.0,0.00016817,2]
[403160491,1769219445931,-558.65,0.00016817,2]
[403160492,1769219445941,-468.53,0.00016817,2]
[403160493,1769219445950,-468.39,0.00016817,2]
[403160494,1769219445959,-468.39,0.00016817,2]
[403160495,1769219445968,-484.37,0.00016841,2]
[403160496,1769219445978,-150.0,0.00016852,2]
[403160497,1769219445987,-209.71,0.00016872,2]
[403160498,1769219445996,-1000.0,0.00016933,2]
[403160499,1769219446005,-253.80877841,0.00016935,2]
[403160500,1769219446014,-484.37,0.00016941,2]
[403160501,1769219446023,-2475.92639888,0.00016944,2]
[403160502,1769219446032,-7533.25288006,0.00016944,2]
[403160503,1769219446041,-162.31226797,0.00016952,2]
[403160504,1769219446050,-394.94349025,0.00016974,2]
[403160505,1769219446060,-558.47,0.00016978,2]
[403160506,1769219446069,-179.83,0.00016978,2]
[403160507,1769219446078,-172.08,0.00016978,2]
[403160508,1769219446087,-1155.33,0.00017,2]
[403160509,1769219446096,-191.3897468,0.0001704,2]
[403160510,1769219446106,-479.76,0.00017041,2]
[403160511,1769219446115,-984.56,0.00017041,2]
[403160512,1769219446124,-336.0,0.00017068,2]
[403160513,1769219446133,-150.0,0.00017078,2]
[403160514,1769219446142,-150.0,0.00017078,2]
[403160515,1769219446151,-150.0,0.00017078,2]
[403160516,1769219446161,-172.08,0.00017078,2]
[403160517,1769219446170,-558.47,0.00017078,2]
[403160518,1769219446178,-179.83,0.00017078,2]
[403160520,1769219446188,-300.25,0.00017078,2]
[403160522,1769219446198,-1421.8,0.00017094,2]
[403160523,1769219446207,-578.20924308,0.00017099,2]
[403160524,1769219446216,-359.76179104,0.00017099,2]
[403160525,1769219446225,-721.12765535,0.00017099,2]
[403160526,1769219446234,-500.0,0.00017099,2]
[403160527,1769219446244,-840.76606737,0.00017099,2]
[403160528,1769219446253,-151.0,0.00017099,2]
[403160529,1769219446262,-854.2589148,0.00017099,2]
[403160530,1769219446271,-500.0,0.00017099,2]
[403160531,1769219446280,-500.0,0.00017099,2]
[403160532,1769219446289,-500.0,0.00017099,2]
[403160533,1769219446299,-500.0,0.00017099,2]
[403160534,1769219446307,-500.0,0.00017099,2]
[403160535,1769219446316,-322.6107,0.00017099,2]
[403160536,1769219446326,-500.0,0.00017099,2]
[403160537,1769219446335,-500.0,0.00017099,2]
[403160538,1769219446344,-500.0,0.00017099,2]
[403160539,1769219446353,-500.0,0.00017099,2]
[403160540,1769219446362,-500.0,0.00017099,2]
[403160541,1769219446372,-500.0,0.00017099,2]
[403160542,1769219446381,-500.0,0.00017099,2]
[403160543,1769219446390,-500.0,0.00017099,2]
[403160544,1769219446399,-500.0,0.00017099,2]
[403160545,1769219446408,-500.0,0.00017099,2]
[403160546,1769219446417,-2468.0,0.00017099,2]
[403160547,1769219446425,-500.0,0.00017099,2]
[403160548,1769219446434,-500.0,0.00017099,2]
[403160549,1769219446443,-500.0,0.00017099,2]
[403160550,1769219446452,-250.0,0.00017099,2]
[403160551,1769219446461,-500.0,0.00017099,2]
[403160552,1769219446470,-209.40437684,0.00017099,2]
[403160553,1769219446479,-250.0,0.00017099,2]
[403160554,1769219446488,-274.29477852,0.00017099,2]
[403160555,1769219446497,-555.87535739,0.00017099,2]
[403160556,1769219446506,-250.0,0.00017099,2]
[403160557,1769219446515,-250.0,0.00017099,2]
[403160558,1769219446524,-250.0,0.00017099,2]
[403160559,1769219446533,-250.0,0.00017099,2]
[403160560,1769219446544,-250.0,0.00017099,2]
[403160561,1769219446553,-264.90142985,0.00017099,2]
[403160562,1769219446562,-250.0,0.00017099,2]
[403160563,1769219446571,-250.0,0.00017099,2]
[403160564,1769219446580,-264.91023601,0.00017099,2]
[403160565,1769219446589,-250.0,0.00017099,2]
[403160566,1769219446599,-250.0,0.00017099,2]
[403160567,1769219446607,-250.0,0.00017099,2]
[403160568,1769219446616,-250.0,0.00017099,2]
[403160569,1769219446625,-250.0,0.00017099,2]
[403160570,1769219446634,-174.61919141,0.00017099,2]
[403160571,1769219446643,-263.73278243,0.00017099,2]
[403160572,1769219446652,-250.0,0.00017099,2]
[403160573,1769219446660,-258.63418343,0.00017099,2]
[403160574,1769219446669,-500.0,0.00017099,2]
[403160575,1769219446678,-500.0,0.00017099,2]
[403160576,1769219446687,-500.0,0.00017099,2]
[403160577,1769219446696,-250.0,0.00017099,2]